Cogmind - Beta 15 @@@ ROGUE MODE // 2025.07.27 @ 02:30:38 Player: nassim Result: Destroyed by Y-45 Defender with Heavy Assault Rifle Performance ------------- Evolutions (2) 1000 Regions Visited (3) 600 Robots Destroyed (49) 245 Value Destroyed (1064) 1064 Prototype IDs (0) 0 Alien Tech Used (0) 0 Bonus (0) 0 TOTAL SCORE: 2909 Bonus ------- None Cogmind --------- Core Integrity 0/550 Matter 86/300 Energy 99/100 System Corruption 0% Temperature Cool (9) Movement Core (50) Location -8/Materials Parts ------- > --- POWER (2) -------- (None) > --- PROPULSION (3) --- (None) > --- UTILITY (4) ------ (None) > --- WEAPON (2) ------- (None) > --- INVENTORY (5) ---- Reaction Control System Particle Cannon Particle Cannon Heavy Particle Cannon Great Maul Peak State ------------ > --- POWER ------------ Reinforced Ion Engine Nuclear Core > --- PROPULSION ------- Aluminum Leg Carbon-fiber Leg Carbon-fiber Leg > --- UTILITY ---------- Medium Storage Unit Advanced Weight Redist. System Structural Scanner Hardened Light Armor Plating > --- WEAPON ----------- Beam Cannon Flak Cannon > --- INVENTORY -------- Light Treads Sensor Array Reaction Control System Hardlight Generator Particle Cannon Particle Cannon Particle Cannon Particle Cannon Heavy Particle Cannon Great Maul [Rating: 25] Favorites ----------- Power Improved Ion Engine Engine Improved Ion Engine Power Core Nuclear Core Propulsion Aluminum Leg Treads Light Treads Leg Aluminum Leg Utility Medium Storage Unit Device Sensor Array Storage Medium Storage Unit Processor Transport Network Coupler Protection Hardened Light Armor Plating Weapon Particle Cannon Energy Gun EM Pulse Gun Energy Cannon Particle Cannon Ballistic Gun Assault Rifle Ballistic Cannon Flak Cannon Build | -11 -10 -9 -8 ------- Run | Yrd Mat Mat Mat Slots Evolved 4 | . . 2 2 Power 1 | . . 1 . Propulsion 1 | . . . 1 Utility 2 | . . 1 1 Weapon . | . . . . Parts Attached 38 | 8 11 13 6 Power 6 | 1 1 3 1 Engine 5 | 1 1 3 . Core 1 | . . . 1 Reactor . | . . . . Propulsion 10 | 4 2 2 2 Treads 2 | 2 . . . Leg 8 | 2 2 2 2 Wheel . | . . . . Hover . | . . . . Flight . | . . . . Utility 11 | 1 4 5 1 Device 6 | . 2 3 1 Storage 3 | 1 1 1 . Processor 1 | . 1 . . Hackware . | . . . . Protection 1 | . . 1 . Artifact . | . . . . Weapon 11 | 2 4 3 2 Energy Gun 2 | . 1 1 . Energy Cannon 6 | . 3 2 1 Ballistic Gun 2 | 2 . . . Ballistic Cannon 1 | . . . 1 Launcher . | . . . . Special Weapon . | . . . . Impact Weapon . | . . . . Slashing Weapon . | . . . . Piercing Weapon . | . . . . Special Melee Weapon . | . . . . Unidentified Prototypes . | . . . . Parts Lost 11 | . . 1 10 Power 3 | . . . 3 Propulsion 4 | . . . 4 Utility 3 | . . 1 2 Weapon 1 | . . . 1 Highest Loss Streak 7 | . . 1 7 To Critical Strikes . | . . . . Average Backups 7 | 3 7 9 8 Power . | . 1 . . Propulsion 1 | 1 2 1 1 Utility 1 | . . 3 2 Weapon 3 | . 3 4 5 Tool/Special . | . . . . Unused Backups 8 | . 3 2 3 Power 2 | . 2 . . Propulsion . | . . . . Utility 3 | . . 1 2 Weapon 3 | . 1 1 1 Tool/Special . | . . . . Average Slot Usage (%) 96 | . 97 99 89 Engine 16 | . 14 21 10 Core 1 | . . . 4 Treads 4 | . . 7 3 Leg 20 | . 28 14 19 Device 15 | . 8 20 19 Storage 11 | . 14 11 8 Processor 1 | . 2 . . Protection 1 | . . . 6 Energy Gun 1 | . 3 . . Energy Cannon 19 | . 19 21 15 Ballistic Gun 1 | . 5 . . Peak Build Rating 25 | 6 13 18 25 Average Rating 13 | 5 9 15 20 On Entrance 8 | . 6 11 15 Naked Turns 31 | . . . 31 Heaviest Build 42 | 13 26 39 42 Greatest Support 49 | 40 20 40 49 Greatest Overweight (x) 8 | . 1 2 8 Average Overweight (x) . | . . . . Largest Inventory Capacity 10 | 8 10 10 10 Average Capacity 9 | 7 9 10 9 Most Carried 10 | 4 9 10 10 Average Carried 7 | 3 7 9 8 Final Capacity 10 | 8 10 10 5 Final Carried 9 | 4 9 8 5 Class Distribution -------------------- 97% | Mutant Dominant Class ---------------- Mutant | -10/Materials Mutant | -9/Materials Mutant | -8/Materials Resources | -11 -10 -9 -8 ----------- Run | Yrd Mat Mat Mat Matter Collected 963 | 289 206 227 241 Remotely . | . . . . Salvage Created 1447 | 91 291 790 275 Parts 100 | 1 29 55 15 Haulers Intercepted 3 | . 1 2 . Recyclers Shooed . | . . . . Parts Field Recycled . | . . . . Retrieved Matter . | . . . . Parts Self-Destructed . | . . . . Prevented . | . . . . Kills | -11 -10 -9 -8 ------- Run | Yrd Mat Mat Mat Combat Hostiles Destroyed 38 | . 8 20 10 Guns 8 | . 6 2 . Cannons 29 | . 2 17 10 Classes Destroyed 10 | 1 5 2 2 Worker 2 | . 1 1 . Builder 2 | . . 2 . Hauler 3 | . 1 2 . Recycler 1 | 1 . . . Watcher 3 | . 2 1 . Swarmer 20 | . 6 10 4 Grunt 9 | . 2 5 2 Duelist 1 | . . . 1 Sentry 7 | . . 5 2 Hunter 1 | . . . 1 Best Kill Streak 7 | 1 4 7 5 Combat Bots Only 5 | . 3 5 5 Max Kills in Single Turn 2 | 1 2 2 1 Gunslinging 1 | . 1 . . Exploded . | . . . . Melee . | . . . . Uniques/NPCs Destroyed . | . . . . Combat | -11 -10 -9 -8 -------- Run | Yrd Mat Mat Mat Hostile Shots Fired 293 | . 31 99 163 Missed 81 | . 9 21 51 Hits 212 | . 22 78 112 Melee 2 | . . . 2 Projectile 210 | . 22 78 110 Critical Strikes 4 | . . . 4 Damage Taken 2515 | . 197 811 1507 Core 681 | . 47 83 551 Absorbed by Shields . | . . . . Regen/Repaired (Parts) 92 | . . 92 . Core Remaining (%) 86 | 100 81 79 . Volleys Fired 133 | 3 28 45 57 Largest 2 | 2 2 2 2 Hottest 143 | 40 136 136 143 Shots Fired 227 | 6 56 79 86 Gun 43 | 6 30 7 . Cannon 184 | . 26 72 86 Launcher . | . . . . Special . | . . . . Kinetic 53 | 6 20 . 27 Thermal 157 | . 26 72 59 Explosive . | . . . . Electromagnetic 17 | . 10 7 . Robot Hit Streak 8 | 3 4 5 8 Robot Miss Streak 8 | . 4 5 8 Penetration Max . | . . . . Secondary Targets 1 | . 1 . . Max Gunslinging Chain 1 | . 1 . . Shots Hit Robots 110 | 3 25 36 46 Core Hits 73 | 2 15 26 30 Critical Kills 1 | . . 1 . Critical Parts Destroyed . | . . . . Critical Strikes 1 | . . 1 . Meltdown 1 | . . 1 . Melee Attacks . | . . . . Impact . | . . . . Slashing . | . . . . Piercing . | . . . . Sneak Attacks . | . . . . Combat Hostiles . | . . . . Follow-up Attacks . | . . . . Damage Inflicted 2266 | 37 391 880 958 Guns 254 | 33 176 45 . Cannons 1979 | . 213 835 931 Explosions . | . . . . Melee . | . . . . Ramming 33 | 4 2 . 27 Kinetic 492 | 33 98 . 361 Thermal 1618 | . 213 835 570 Explosive . | . . . . Electromagnetic 123 | . 78 45 . Impact . | . . . . Slashing . | . . . . Piercing . | . . . . Highest Corruption 2 | . 2 . . Average Corruption 2 | . 2 . . Corruption Purged . | . . . . Corruption Blocked . | . . . . Overload Shots . | . . . . Overflow Damage 13 | . 12 . 1 Projectiles 13 | . 12 . 1 Explosions . | . . . . Melee . | . . . . Knockbacks 17 | 1 . . 16 Impact 3 | 1 . . 2 Kinetic 11 | . . . 11 Secondary 3 | . . . 3 Self-Inflicted Damage . | . . . . Shots . | . . . . Rammed . | . . . . Targets Rammed 5 | 1 1 . 3 Kicked 5 | 1 1 . 3 Crushed . | . . . . Highest Temperature 520 | . 234 520 516 Average Temperature 201 | . 82 208 236 Received Heat Transfer 570 | . 18 129 423 Effects 48 | . . 30 18 Shutdowns 17 | . . 13 4 Energy Bleed 6 | . . 4 2 Interference 9 | . . 9 . Matter Decay 3 | . . 1 2 Short Circuit 4 | . . 1 3 Damage (minor) 3 | . . 2 1 Damage (major) 5 | . . . 5 Damage (core) 1 | . . . 1 Siege Activations . | . . . . Martial Activations . | . . . . Shielding Activations . | . . . . Robots Disrupted . | . . . . Combat Hostiles . | . . . . Robots Corrupted . | . . . . Combat Hostiles . | . . . . Parts Fried . | . . . . Impact Corruptions . | . . . . Robots Melted 1 | . . 1 . Combat Hostiles 1 | . . 1 . Parts Melted 7 | . 1 3 3 Heat Transferred 2886 | . 407 1480 999 Parts Sabotaged . | . . . . Parts Stolen . | . . . . Parts Stripped . | . . . . Power Chain Reactions . | . . . . Alert | -11 -10 -9 -8 ------- Run | Yrd Mat Mat Mat Maximum Alert Level 1 | . . 1 1 Low Security (%) 85 | 100 100 63 94 Level 1 14 | . . 36 5 Level 2 . | . . . . Level 3 . | . . . . Level 4 . | . . . . Level 5 . | . . . . High Security . | . . . . Max Security . | . . . . Peak Influence 297 | 5 104 297 217 Initial 111 | . . . 111 Average 77 | . 26 131 104 Influence Increases 1191 | 5 251 569 366 Destroy 0b10 Robot/C 760 | . 160 400 200 Destroy 0b10 Robot/NC 55 | 5 20 30 . Destroy Leader 192 | . 36 96 60 Successful Hack 37 | . 17 11 9 Disable Machine 45 | . 15 30 . Destroy Structure 12 | . 3 2 7 Lose Combat Pursuer 90 | . . . 90 Influence Decreases 1076 | 5 251 304 516 Entered New Map 154 | . . . 154 Time Decay 812 | 5 251 294 262 Lost Part 110 | . . 10 100 Squads Dispatched 4 | . . 1 3 Investigation 3 | . . 1 2 Extermination . | . . . . Reinforcement 1 | . . . 1 Assault . | . . . . Garrison . | . . . . Intercept . | . . . . Searches Triggered . | . . . . Construction Impeded . | . . . . Haulers Reinforced . | . . . . Active Scanning Responses . | . . . . Cargo Convoy Interrupts . | . . . . Stealth | -11 -10 -9 -8 --------- Run | Yrd Mat Mat Mat Distress Signals 10 | . 1 6 3 Communications Jammed . | . . . . Distress Signals . | . . . . Times Spotted 82 | . 18 29 35 Peak Tracking Total 11 | . 4 7 11 Tactical Retreats 3 | . . . 3 Traps | -11 -10 -9 -8 ------- Run | Yrd Mat Mat Mat Traps Triggered 2 | . 1 1 . Indirectly . | . . . . Trap Hack Attempts . | . . . . Triggered . | . . . . Disarmed . | . . . . Reprogrammed . | . . . . Reused . | . . . . Traps Extracted . | . . . . Installed . | . . . . Triggered . | . . . . Machines | -11 -10 -9 -8 ---------- Run | Yrd Mat Mat Mat Machines Disabled 3 | . 1 2 . Max in Single Turn 1 | . 1 1 . Machines Repaired . | . . . . Machines Dismantled . | . . . . Machines Sabotaged . | . . . . Overloaded Fab Kills . | . . . . Hacking | -11 -10 -9 -8 --------- Run | Yrd Mat Mat Mat Machines Accessed 8 | . 2 3 3 Terminals 6 | . 2 2 2 Fabricators . | . . . . Repair Stations 1 | . . 1 . Recycling Units . | . . . . Scanalyzers 1 | . . . 1 Garrison Access . | . . . . Total Hacks 32 | . 7 11 14 Successful 21 | . 3 7 11 Failed 11 | . 4 4 3 Catastrophic 2 | . . . 2 Database Lockouts . | . . . . Manual . | . . . . Terminals 23 | . 7 6 10 Fabricators . | . . . . Repair Stations 5 | . . 5 . Recycling Units . | . . . . Scanalyzers 4 | . . . 4 Garrison Access . | . . . . Terminal Hacks 14 | . 3 3 8 Record 5 | . . . 5 Branch Access Points 1 | . . . 1 Emergency Access Points 2 | . 1 1 . Alert Level 1 | . . . 1 Dispatch Records 1 | . . 1 . Maintenance Status 2 | . 1 1 . Hauler Manifests 1 | . 1 . . Zone Layout 1 | . . . 1 Fabricator Hacks . | . . . . Repair Station Hacks 4 | . . 4 . Scan Component 2 | . . 2 . Repair 2 | . . 2 . Recycling Unit Hacks . | . . . . Scanalyzer 3 | . . . 3 Insert Component 2 | . . . 2 Analyze 1 | . . . 1 Garrison Access Hacks . | . . . . Unauthorized Hacks . | . . . . Terminals . | . . . . Fabricators . | . . . . Repair Stations . | . . . . Recycling Units . | . . . . Scanalyzers . | . . . . Garrison Access . | . . . . Data Cores Recovered . | . . . . Used . | . . . . Hacking Detections 7 | . 1 3 3 Full Trace Events 4 | . . 2 2 Feedback Events . | . . . . Feedback Blocked . | . . . . Robot Schematics Acquired . | . . . . Robots Built . | . . . . Authchips . | . . . . Time . | . . . . Total Robot Build Rating . | . . . . Part Schematics Acquired 1 | . . . 1 Parts Built . | . . . . Authchips . | . . . . Time . | . . . . Total Part Build Rating . | . . . . Parts Repaired 2 | . . 2 . Time 64 | . . 64 . Parts Recycled . | . . . . Recycled Matter . | . . . . Retrieved Matter . | . . . . Retrieved Components . | . . . . Parts Scanalyzed 1 | . . . 1 Part Schematics Acquired 1 | . . . 1 Parts Damaged . | . . . . Bothacking | -11 -10 -9 -8 ------------ Run | Yrd Mat Mat Mat Used RIF Installer . | . . . . Robots Hacked . | . . . . Non-combat . | . . . . Combat . | . . . . Robot Hacks Applied . | . . . . Relay Couplers Released . | . . . . Fabnet Peak Effective % . | . . . . Robots Rewired . | . . . . Allies Hacked . | . . . . Hacks Repelled . | . . . . Allies | -11 -10 -9 -8 -------- Run | Yrd Mat Mat Mat Total Allies . | . . . . Largest Group . | . . . . Highest-Rated Group . | . . . . Highest-Rated Ally . | . . . . Total Orders . | . . . . Ally Attacks . | . . . . Total Damage . | . . . . Kills . | . . . . Allies Corrupted . | . . . . Allies Melted . | . . . . Intel | -11 -10 -9 -8 ------- Run | Yrd Mat Mat Mat Active Infowar (turns) 2051 | . 618 922 511 Sensors 1435 | . 444 904 87 Terrain 606 | . . 606 . Structural 508 | . . . 508 T.N.C. 174 | . 174 . . Robot Analysis Total . | . . . . Derelict Logs Recovered . | . . . . Drone Launches . | . . . . Drone Recoveries . | . . . . Exploration | -11 -10 -9 -8 ------------- Run | Yrd Mat Mat Mat Turns Passed 2738 | 297 900 964 577 Spaces Moved 1339 | 188 476 385 290 Core 68 | 3 . . 65 Treads 216 | 7 . 165 44 Legs 1055 | 178 476 220 181 Wheels . | . . . . Hover . | . . . . Flight . | . . . . Fastest Speed 50 | 50 120 160 50 Average Speed 149 | 120 160 178 112 Slowest Speed 450 | 160 190 260 450 Overloaded Moves . | . . . . Propulsion Burnouts . | . . . . Robots Hopped . | . . . . Potential Cave-ins . | . . . . Cave-ins Triggered . | . . . . Exploration Rate (%) 39 | 9 82 38 29 Regions Visited 3 Branch Regions . Pre-discovered Areas . | . . . . Known Exits Taken . | . . . . Unknown Exits Taken 3 | 1 1 1 . Scrap Searched . | . . . . Spaces Dug . | . . . . Terrain Destroyed 7 | . . 1 6 Melee . | . . . . Projectile 7 | . . 1 6 AOE . | . . . . Terrain Rammed . | . . . . Walls Destroyed . | . . . . Machines Disabled . | . . . . Actions | -11 -10 -9 -8 --------- Run | Yrd Mat Mat Mat Total 1842 | 247 559 586 450 Wait 237 | 31 21 113 72 Move 1336 | 187 475 384 290 Hop . | . . . . Pick Up 34 | 5 12 9 8 Fast Attach 15 | 7 4 3 1 Attach 16 | 1 1 8 6 Detach 4 | 2 . 2 . Swap 36 | 8 6 11 11 Drop 26 | 2 11 11 2 Fire 133 | 3 28 45 57 Melee . | . . . . Ram . | . . . . Kick 5 | 1 1 . 3 Crush . | . . . . Escape Stasis . | . . . . Rewire . | . . . . Trap . | . . . . Miscellaneous . | . . . . Route ------- -11/Scrapyard -10/Materials (discovered 3 exits: *Mat x2 / [*Min]) -9/Materials (discovered 2 exits: *Mat / [*Min]) -8/Materials History --------- Turn | Location | Event 26 | -11/Scrapyard | Discovered new exit (range 15) 298 | -11/Scrapyard | Entered Materials 299 | -10/Materials | Met a group of wandering Federalists 318 | -10/Materials | Build established: Mutant 406 | -10/Materials | Discovered new exit (range 7) 777 | -10/Materials | Discovered new exit (range 16) 1158 | -10/Materials | Discovered new exit (range 16) 1198 | -10/Materials | Entered another Materials area 1198 | -9/Materials | Evolved 2 slots: Power x1, Utility x1 1803 | -9/Materials | Repaired Imp. Ion Engine 1844 | -9/Materials | Repaired Imp. Aluminum Leg? 1845 | -9/Materials | Discovered new exit (range 16) 2137 | -9/Materials | Discovered new exit (range 10) 2162 | -9/Materials | Entered another Materials area 2162 | -8/Materials | Evolved 2 slots: Propulsion x1, Utility x1 2708 | -8/Materials | Released all parts (5) 2710 | -8/Materials | Core integrity fell below 50% 2731 | -8/Materials | Core integrity fell below 20% 2735 | -8/Materials | Lost 7 parts (2p3n1u1w) 2739 | -8/Materials | Destroyed by Y-45 Defender with Heavy Assault Rifle Last Messages --------------- 02699_ K-01 Serf collects debris. 02700_ Flak Cannon broken. 02700_ Overheating: Short circuit. 02700_ Hrd. Light Armor Plating destroyed. 02701_ Adv. Weight Redist. System broken. 02701_ Overheating: Short circuit. 02702_ K-01 Serf collects debris. 02704_ Rnf. Ion Engine destroyed. 02707_ M-13 Machinist repairs S-10 Pest. 02708_ K-01 Serf collects debris. 02708_ Released Lgt. Treads. 02708_ Released Med. Storage Unit. 02708_ Released Broken Adv. Weight Redist. System. 02708_ Released Structural Scanner. 02708_ Released Broken Flak Cannon. 02720_ Matter Filter disabled. 02723_ Slug penetrates Atomic Centrifuge. 02723_ Atomic Centrifuge disabled. 02726_ K-01 Serf collects debris. 02738_ Slug penetrates T-07 Excavator. Map ----- +----------------------------------------------------+ | ???????????????????# | #???????????? | | ???????????????????#"" """ #???????????? | | ???????????????????#"T """ #???????????? | | ???????????? ??????#"" """ #???????####? | | ??????????# ""????# ######## !!#? | | ??????????# """ ??#####+###### !!#? | | ??????????# #### !!#? | | ??????????# " + !!#? | | ??????????# """ ### %"""""" [[#? | | ???????????? """ ????# %"""""" [[#? | | ??????????? ??????# """"""" #######? | | ????###########+###### """"""" #??????? | | ????# #s """"""" #??????? | | ????# + #??????? | | ????# # #??????? | | ????# #h ######## | | ????# # g#######"T"## ######## | | ????# # #?????###### ## !]=# | | ????# # t#?????????## ## ]]!! | | ????# + #?????????## ^ " !! | | ????# # #?????????##+###### *% | | ????########## ##????????? ### # | | ????????????# Y #???????????????####+### | | ????????????# s #####???????????## | | ????????????# w #???????????## | | ????????????# @### #???????????## """ | | ????????????# #???????????????## = """ | | ????????????#######???????????????## """ | | ??????????????????????????????????## | | ??????????????????????????????????######## | | ??????????????????????????????????######## | | ??????????????????????????????????????##! | | ??????????????????????????????????????## | | ??????????????????????????????????????## | | ??????????????????????????????????????## S | | ??????????????????????????????????????## " | | ??????????????????????????????????????## | | ????????????????????????????????########+# | | ???????????????????????????????? ####### | | ????????????????????????????????## ! # | | ????????????????????????????????## # | | ????????????????????????????????## # | | ????????????????????????????????##""" # | | ????????????????????????????????##""" # | | ????????????????????????????????##""" + | | ????????????????????????????????## ### | | ????????????????????????????????####+##### | | ????????????????????????????????## | | ????????????????????????????????## | | ????????????????????????????????## | +----------------------------------------------------+ Best States ------------- Heat Dissipation 45 Energy Generation 21 Energy Capacity 430 Matter Stores 300 Matter Capacity 300 Sight Range 16 Robot Scan Range 14 Terrain Scan Range 16 Terrain Scan Density 10 Additional Mass Support 9 Armor Coverage 150 Evasion (%) 55 Recoil Reduction 2 Particle Charging 15 Item Schematics ----------------- Hvy. Particle Cannon | -8/Materials | Scanalyzed Robot Schematics ------------------ None Fabricated ------------ Nothing Repaired ---------- Imp. Ion Engine | 8% | -9/Materials Imp. Aluminum Leg | 72% | -9/Materials Alien Tech Used ----------------- None Achievements -------------- None Challenges ------------ None Game ------ Seed WeaponsStorageInjector Manual? 0 Play Time 01:11:06 Cumulative 13.5 hours Start 2025.07.27 @ 01:10:08 End 2025.07.27 @ 02:30:38 Sessions 1 Manual Loads 0 Difficulty Rogue Special Mode None Game No. 10 Rogue 9 Adventurer 1 Explorer 0 Win Type - Total 0 Types 0/0/0/0/0/0/0/0/0/0 Lore% 4 Gallery% 12 Achievement% 13 Wizard Run 0 Options --------- Layout 1 ASCII 0 Keyboard 0 Movement Mouse Keybinds 0 Fullscreen 1 Font 16/SmallcapsGlow Map View 55x38 Zoom Use 0% Tactical HUD 1 Map Filters NONE Filters NONE Steam 1 RUN: c43d7449-9f91-4f5e-aa59-d0f31823ae8d